[Event "Dutch Open-ch 2019"]
[Site "Dieren"]
[Date "2019.07.23"]
[Round "1.1"]
[White "Suvrajit, Saha"]
[Black "Reinderman, Dimitri"]
[Result "0-1"]
[ECO "A91"]
[WhiteElo "2189"]
[BlackElo "2583"]
[Annotator "ChessBase"]
[PlyCount "104"]
[EventDate "2019.07.23"]
[EventType "swiss"]
[EventCountry "NED"]
[SourceTitle "playchess.com"]
[Source "ChessBase"]
[SourceQuality "1"]
[TimeControl "40/5400+30:1800+30"]

1. d4 {[%emt 0:00:00]} f5 {[%emt 0:00:00]} 2. g3 {[%emt 0:00:00]} Nf6 {[%emt 0:00:00]} 3. Bg2 {[%emt 0:00:00]} e6 {[%emt 0:00:00]} 4. Nh3 {[%emt 0:01:09]} Be7 {[%emt 0:00:18]} 5. O-O {[%emt 0:00:13]} O-O {[%emt 1:32:12]} 6. c4 {[%emt 0:01:18]} d6 {[%emt 0:00:00]} 7. Nc3 {[%emt 0:00:30]} e5 {[%emt 0:00:00]} 8. dxe5 {[%emt 0:06:48]} dxe5 {[%emt 0:00:00]} 9. Qxd8 {[%emt 0:00:51]} Bxd8 {[%emt 0:00:00]} 10. Nd5 {[%emt 0:01:35]} Na6 {[%emt 0:00:00]} 11. b3 {[%emt 0:07:55]} c6 {[%emt 0:00:00]} 12. Nxf6+ {[%emt 0:00:33]} Bxf6 {[%emt 0:00:00]} 13. Ba3 {[%emt 0:12:31]} Rd8 {[%emt 0:00:00]} 14. Rad1 {[%emt 0:02:19]} Be6 {[%emt 0:00:00]} 15. f4 {[%emt 0:03:26]} e4 {[%emt 0:00:00]} 16. e3 {[%emt 0:00:29]} b5 {[%emt 0:00:00]} 17. cxb5 {[%emt 0:04:28]} cxb5 {[%emt 0:00:00]} 18. Ng5 {[%emt 0:06:17]} Bd5 {[%emt 0:00:00]} 19. Rf2 {[%emt 0:01:08]} h6 {[%emt 0:00:00]} 20. Nh3 {[%emt 0:00:38]} Bf7 {[%emt 0:00:00]} 21. Rfd2 {[%emt 0:02:01]} b4 {[%emt 0:00:00]} 22. Rxd8+ {[%emt 0:05:08]} Rxd8 {[%emt 0:00:00]} 23. Rxd8+ {[%emt 0:00:06]} Bxd8 {[%emt 0:00:00]} 24. Bc1 {[%emt 0:02:21]} Nc7 {[%emt 0:00:00]} 25. Nf2 {[%emt 0:04:46]} Nd5 {[%emt 0:00:00]} 26. Nd1 {[%emt 0:01:59]} Bh5 {[%emt 0:00:00]} 27. Bf1 {[%emt 0:01:10]} Nxf4 {[%emt 0:00:00]} 28. Bc4+ {[%emt 0:00:20]} Kh7 {[%emt 0:00:00]} 29. gxf4 {[%emt 0:00:07]} Bxd1 {[%emt 0:00:00]} 30. a3 {[%emt 0:00:22]} bxa3 {[%emt 0:00:00]} 31. Bxa3 {[%emt 0:01:43]} Bb6 {[%emt 0:00:00]} 32. Kf2 {[%emt 0:00:14]} g5 {[%emt 0:00:00]} 33. Bd6 {[%emt 0:00:15]} Kg6 {[%emt 0:00:00]} 34. Be5 {[%emt 0:01:27]} a5 {[%emt 0:00:00]} 35. Bd5 {[%emt 0:04:37]} Bc2 {[%emt 0:00:07]} 36. Be6 {[%emt 0:01:33]} Bd8 {[%emt 0:04:38]} 37. Bd6 {[%emt 0:07:39]} Bb1 {[%emt 0:05:00]} 38. Bd7 {[%emt 0:01:51]} Ba2 {[%emt 0:02:05]} 39. Be8+ {[%emt 0:06:28]} Kf6 {[%emt 0:00:54]} 40. Be5+ {[%emt 0:05:20]} Ke6 {[%emt 0:00:38]} 41. Ba4 {[%emt 0:30:31]} Bb6 {[%emt 0:05:21]} 42. Bb8 {[%emt 0:00:00]} Bb1 {[%emt 0:03:00]} 43. Be5 {[%emt 0:00:00]} Bc2 {[%emt 0:02:45]} 44. Bb8 {[%emt 0:00:00]} Ke7 {[%emt 0:07:54]} 45. Be5 {[%emt 0:00:00]} Bd3 {[%emt 0:00:33]} 46. Bb8 {[%emt 0:00:00]} Ba6 {[%emt 0:00:58]} 47. Be5 {[%emt 0:00:00]} Bc8 {[%emt 0:07:22]} 48. Ke2 {[%emt 0:00:00]} g4 {[%emt 0:01:51]} 49. Bg7 {[%emt 0:00:00]} h5 {[%emt 0:01:46]} 50. Bh6 {[%emt 0:00:00]} Bd7 {[%emt 0:00:53]} 51. Bg5+ {[%emt 0:00:00]} Ke6 {[%emt 0:00:11]} 52. Bxd7+ {[%emt 0:00:00]} Kxd7 {[%emt 0:00:07]} 0-1

[Event "Dutch Open-ch 2019"]
[Site "Dieren"]
[Date "2019.07.23"]
[Round "1.2"]
[White "David, Alberto"]
[Black "Floor, Dirk"]
[Result "*"]
[ECO "B40"]
[WhiteElo "2553"]
[BlackElo "2184"]
[Annotator "ChessBase"]
[PlyCount "25"]
[EventDate "2019.07.23"]
[EventType "swiss"]
[EventCountry "NED"]
[SourceTitle "playchess.com"]
[Source "ChessBase"]
[SourceQuality "1"]
[TimeControl "40/5400+30:1800+30"]

1. e4 {[%emt 0:00:00]} c5 {[%emt 0:00:16]} 2. Nf3 {[%emt 0:00:00]} e6 {[%emt 1:30:44]} 3. b3 {[%emt 0:00:33]} b6 {[%emt 0:01:25]} 4. Bd3 {[%emt 0:01:13]} Bb7 {[%emt 0:00:29]} 5. O-O {[%emt 0:00:22]} Nc6 {[%emt 0:00:38]} 6. c3 {[%emt 0:07:47]} Qc7 {[%emt 0:06:32]} 7. Re1 {[%emt 0:01:03]} Nf6 {[%emt 0:06:22]} 8. Bf1 {[%emt 0:12:48]} Be7 {[%emt 0:03:26]} 9. e5 {[%emt 0:08:47]} Ng4 {[%emt 0:01:02]} 10. d4 {[%emt 0:00:30]} cxd4 {[%emt 0:10:40]} 11. cxd4 {[%emt 0:01:08]} Nb4 {[%emt 0:00:09]} 12. Na3 {[%emt 0:09:56]} Rc8 {[%emt 0:06:33]} 13. Bg5 {[%emt 0:11:32]} *

[Event "Dutch Open-ch 2019"]
[Site "Dieren"]
[Date "2019.07.23"]
[Round "1.2"]
[White "De Jong, Tom"]
[Black "Pruijssers, Roeland"]
[Result "0-1"]
[ECO "B40"]
[WhiteElo "2176"]
[BlackElo "2534"]
[Annotator "ChessBase"]
[PlyCount "75"]
[EventDate "2019.07.23"]
[EventType "swiss"]
[EventCountry "NED"]
[SourceTitle "playchess.com"]
[Source "ChessBase"]
[SourceQuality "1"]
[TimeControl "40/5400+30:1800+30"]

1. e4 {[%emt 0:00:00]} c5 {[%emt 0:00:16]} 2. Nf3 {[%emt 0:00:00]} e6 {[%emt 0:00:08]} 3. b3 {[%emt 0:00:33]} b6 {[%emt 0:01:25]} 4. Bd3 {[%emt 0:01:13]} Bb7 {[%emt 0:00:29]} 5. O-O {[%emt 0:00:22]} Nc6 {[%emt 0:00:38]} 6. c3 {[%emt 0:07:47]} Qc7 {[%emt 0:06:32]} 7. Re1 {[%emt 0:01:03]} Nf6 {[%emt 0:06:22]} 8. Bf1 {[%emt 0:12:48]} Be7 {[%emt 0:03:26]} 9. e5 {[%emt 0:08:47]} Ng4 {[%emt 0:01:02]} 10. d4 {[%emt 0:00:30]} cxd4 {[%emt 0:10:40]} 11. cxd4 {[%emt 0:01:08]} Nb4 {[%emt 0:00:09]} 12. Na3 {[%emt 0:09:56]} Rc8 {[%emt 0:06:33]} 13. Bg5 {[%emt 0:11:32]} f6 {[%emt 0:08:56]} 14. Rc1 {[%emt 0:01:45]} Qb8 {[%emt 0:01:41]} 15. Rxc8+ {[%emt 0:01:49]} Qxc8 {[%emt 0:00:06]} 16. exf6 {[%emt 0:02:07]} gxf6 {[%emt 0:05:07]} 17. Bf4 {[%emt 0:06:25]} Nd5 {[%emt 0:02:07]} 18. Bc1 {[%emt 0:04:50]} Qb8 {[%emt 0:05:41]} 19. Ne5 {[%emt 0:11:45]} h5 {[%emt 0:04:40]} 20. Nxg4 {[%emt 0:00:47]} hxg4 {[%emt 0:00:07]} 21. g3 {[%emt 0:00:23]} f5 {[%emt 0:01:16]} 22. Nc4 {[%emt 0:00:54]} Nc3 {[%emt 0:01:07]} 23. Qd3 {[%emt 0:06:07]} Ne4 {[%emt 0:05:59]} 24. Bf4 {[%emt 0:01:57]} d6 {[%emt 0:02:03]} 25. Ne5 {[%emt 0:02:38]} dxe5 {[%emt 0:03:00]} 26. Bxe5 {[%emt 0:00:02]} Qa8 {[%emt 0:00:06]} 27. Bxh8 {[%emt 0:00:18]} Ng5 {[%emt 0:00:05]} 28. f4 {[%emt 0:02:01]} Nf3+ {[%emt 0:00:35]} 29. Kf2 {[%emt 0:00:09]} Kf7 {[%emt 0:00:10]} 30. Be5 {[%emt 0:01:21]} Qf8 {[%emt 0:04:52]} 31. Rc1 {[%emt 0:01:35]} Qh6 {[%emt 0:00:06]} 32. h4 {[%emt 0:01:06]} gxh3 {[%emt 0:00:14]} 33. d5 {[%emt 0:00:42]} Nxe5 {[%emt 0:07:15]} 34. dxe6+ {[%emt 0:00:39]} Kg6 {[%emt 0:00:22]} 35. Qb5 {[%emt 0:01:38]} Ng4+ {[%emt 0:00:07]} 36. Ke1 {[%emt 0:00:17]} Nf6 {[%emt 0:04:03]} 37. Rc7 {[%emt 0:00:58]} h2 {[%emt 0:00:15]} 38. Rxb7 {[%emt 0:00:00]} 0-1

[Event "Dutch Open-ch 2019"]
[Site "Dieren"]
[Date "2019.07.23"]
[Round "1.3"]
[White "David, Alberto"]
[Black "Floor, Dirk"]
[Result "1-0"]
[ECO "B11"]
[WhiteElo "2553"]
[BlackElo "2184"]
[Annotator "ChessBase"]
[PlyCount "73"]
[EventDate "2019.07.23"]
[EventType "swiss"]
[EventCountry "NED"]
[SourceTitle "playchess.com"]
[Source "ChessBase"]
[SourceQuality "1"]
[TimeControl "40/5400+30:1800+30"]

1. e4 {[%emt 0:00:00]} c6 {[%emt 0:00:22]} 2. Nf3 {[%emt 0:01:54]} d5 {[%emt 0:00:15]} 3. Nc3 {[%emt 0:00:12]} Nf6 {[%emt 0:00:18]} 4. e5 {[%emt 0:00:22]} Ne4 {[%emt 0:00:12]} 5. Be2 {[%emt 0:01:46]} Bf5 {[%emt 0:03:57]} 6. O-O {[%emt 0:16:46]} e6 {[%emt 0:01:21]} 7. d3 {[%emt 0:11:34]} Nxc3 {[%emt 0:00:28]} 8. bxc3 {[%emt 0:00:03]} c5 {[%emt 0:11:53]} 9. Rb1 {[%emt 0:01:16]} b6 {[%emt 0:02:13]} 10. d4 {[%emt 0:15:05]} Nd7 {[%emt 0:15:47]} 11. c4 {[%emt 0:03:49]} Be7 {[%emt 0:04:58]} 12. cxd5 {[%emt 0:02:23]} exd5 {[%emt 0:00:19]} 13. dxc5 {[%emt 0:00:16]} Nxc5 {[%emt 0:01:50]} 14. Nd4 {[%emt 0:02:33]} Bd7 {[%emt 0:01:03]} 15. Bf3 {[%emt 0:00:07]} Ne4 {[%emt 0:09:39]} 16. Bb2 {[%emt 0:09:57]} Rc8 {[%emt 0:00:52]} 17. Qe2 {[%emt 0:10:12]} O-O {[%emt 0:00:37]} 18. c4 {[%emt 0:00:47]} Bb4 {[%emt 0:06:20]} 19. Rfd1 {[%emt 0:00:31]} Ba4 {[%emt 0:04:25]} 20. cxd5 {[%emt 0:06:24]} Bxd1 {[%emt 0:00:51]} 21. Rxd1 {[%emt 0:04:10]} Nc3 {[%emt 0:00:20]} 22. Bxc3 {[%emt 0:00:03]} Bxc3 {[%emt 0:04:23]} 23. Nc6 {[%emt 0:00:03]} Qg5 {[%emt 0:03:59]} 24. h4 {[%emt 0:00:38]} Qxh4 {[%emt 0:01:44]} 25. Qe3 {[%emt 0:03:24]} Bb2 {[%emt 0:08:55]} 26. Rb1 {[%emt 0:04:34]} Rxc6 {[%emt 0:01:09]} 27. dxc6 {[%emt 0:00:02]} Bd4 {[%emt 0:01:36]} 28. Rb4 {[%emt 0:00:06]} Bxe3 {[%emt 0:01:19]} 29. Rxh4 {[%emt 0:00:02]} Bc5 {[%emt 0:02:44]} 30. Bg4 {[%emt 0:03:08]} f5 {[%emt 0:00:44]} 31. exf6 {[%emt 0:00:18]} Re8 {[%emt 0:07:55]} 32. Kf1 {[%emt 0:01:47]} Bd6 {[%emt 0:01:52]} 33. Bd7 {[%emt 0:00:22]} Re5 {[%emt 0:00:29]} 34. Rd4 {[%emt 0:00:16]} Bc7 {[%emt 0:00:28]} 35. f4 {[%emt 0:00:14]} Rc5 {[%emt 0:00:28]} 36. Be6+ {[%emt 0:00:05]} Kf8 {[%emt 0:00:11]} 37. Rd7 {[%emt 0:00:07]} 1-0

[Event "Dutch Open-ch 2019"]
[Site "Dieren"]
[Date "2019.07.23"]
[Round "1.3"]
[White "De Jong, Tom"]
[Black "Pruijssers, Roeland"]
[Result "*"]
[ECO "B11"]
[WhiteElo "2176"]
[BlackElo "2534"]
[Annotator "ChessBase"]
[PlyCount "26"]
[EventDate "2019.07.23"]
[EventType "swiss"]
[EventCountry "NED"]
[SourceTitle "playchess.com"]
[Source "ChessBase"]
[SourceQuality "1"]
[TimeControl "40/5400+30:1800+30"]

1. e4 {[%emt 0:00:00]} c6 {[%emt 0:00:22]} 2. Nf3 {[%emt 0:01:54]} d5 {[%emt 0:00:15]} 3. Nc3 {[%emt 0:00:12]} Nf6 {[%emt 0:00:18]} 4. e5 {[%emt 0:00:22]} Ne4 {[%emt 0:00:12]} 5. Be2 {[%emt 0:01:46]} Bf5 {[%emt 0:03:57]} 6. O-O {[%emt 0:16:46]} e6 {[%emt 0:01:21]} 7. d3 {[%emt 0:11:34]} Nxc3 {[%emt 0:00:28]} 8. bxc3 {[%emt 0:00:03]} c5 {[%emt 0:11:53]} 9. Rb1 {[%emt 0:01:16]} b6 {[%emt 0:02:13]} 10. d4 {[%emt 0:15:05]} Nd7 {[%emt 0:15:47]} 11. c4 {[%emt 0:03:49]} Be7 {[%emt 0:04:58]} 12. cxd5 {[%emt 0:02:23]} exd5 {[%emt 0:00:19]} 13. dxc5 {[%emt 0:00:16]} Nxc5 {[%emt 0:01:50]} *

[Event "Dutch Open-ch 2019"]
[Site "Dieren"]
[Date "2019.07.23"]
[Round "1.4"]
[White "Van Foreest, Lucas"]
[Black "Evengroen, Henk-Jan"]
[Result "1-0"]
[ECO "C55"]
[WhiteElo "2521"]
[BlackElo "2176"]
[Annotator "ChessBase"]
[PlyCount "49"]
[EventDate "2019.07.23"]
[EventType "swiss"]
[EventCountry "NED"]
[SourceTitle "playchess.com"]
[Source "ChessBase"]
[SourceQuality "1"]
[TimeControl "40/5400+30:1800+30"]

1. e4 {[%emt 0:00:00]} e5 {[%emt 0:00:00]} 2. Nf3 {[%emt 0:00:28]} Nc6 {[%emt 0:00:00]} 3. Bc4 {[%emt 0:00:08]} Nf6 {[%emt 0:00:00]} 4. d3 {[%emt 0:00:08]} Be7 {[%emt 0:00:21]} 5. O-O {[%emt 0:00:09]} O-O {[%emt 0:00:03]} 6. Re1 {[%emt 0:00:34]} d6 {[%emt 0:00:56]} 7. a4 {[%emt 0:01:57]} Bg4 {[%emt 0:05:47]} 8. h3 {[%emt 0:00:58]} Bh5 {[%emt 0:00:42]} 9. Nbd2 {[%emt 0:00:20]} d5 {[%emt 0:07:16]} 10. exd5 {[%emt 0:00:09]} Nxd5 {[%emt 0:00:06]} 11. g4 {[%emt 0:03:11]} Bg6 {[%emt 0:02:52]} 12. Nxe5 {[%emt 0:00:42]} Nxe5 {[%emt 0:14:02]} 13. Rxe5 {[%emt 0:00:07]} Nf4 {[%emt 0:02:06]} 14. Nf3 {[%emt 0:03:29]} Nxh3+ {[%emt 0:10:57]} 15. Kg2 {[%emt 0:01:06]} Bd6 {[%emt 0:00:38]} 16. Kxh3 {[%emt 0:00:52]} Bxe5 {[%emt 0:00:05]} 17. Nxe5 {[%emt 0:00:03]} Be4 {[%emt 0:00:23]} 18. Bf4 {[%emt 0:05:42]} Bd5 {[%emt 0:06:48]} 19. Bxd5 {[%emt 0:00:05]} Qxd5 {[%emt 0:00:05]} 20. Qf3 {[%emt 0:00:04]} Qe6 {[%emt 0:01:01]} 21. Kg2 {[%emt 0:01:42]} g5 {[%emt 0:02:15]} 22. Bg3 {[%emt 0:00:55]} f5 {[%emt 0:06:31]} 23. gxf5 {[%emt 0:00:09]} Rxf5 {[%emt 0:01:25]} 24. Qxb7 {[%emt 0:02:30]} Re8 {[%emt 0:00:21]} 25. Re1 {[%emt 0:01:49]} 1-0

[Event "Dutch Open-ch 2019"]
[Site "Dieren"]
[Date "2019.07.23"]
[Round "1.5"]
[White "Verhoef, Pieter"]
[Black "Ikonnikov, Vyacheslav"]
[Result "0-1"]
[ECO "B31"]
[WhiteElo "2161"]
[BlackElo "2499"]
[Annotator "ChessBase"]
[PlyCount "174"]
[EventDate "2019.07.23"]
[EventType "swiss"]
[EventCountry "NED"]
[SourceTitle "playchess.com"]
[Source "ChessBase"]
[SourceQuality "1"]
[TimeControl "40/5400+30:1800+30"]

1. e4 {[%emt 0:03:58]} c5 {[%emt 0:00:00]} 2. Nf3 {[%emt 0:00:07]} Nc6 {[%emt 0:00:40]} 3. Bb5 {[%emt 0:00:08]} g6 {[%emt 0:00:38]} 4. Bxc6 {[%emt 0:00:17]} dxc6 {[%emt 0:00:18]} 5. d3 {[%emt 0:00:36]} Bg7 {[%emt 0:00:21]} 6. h3 {[%emt 0:00:07]} b6 {[%emt 0:00:43]} 7. Nc3 {[%emt 0:00:28]} Nh6 {[%emt 0:00:31]} 8. Be3 {[%emt 0:02:01]} f6 {[%emt 0:00:23]} 9. Qd2 {[%emt 0:00:15]} Nf7 {[%emt 0:00:09]} 10. O-O {[%emt 0:02:16]} O-O {[%emt 0:00:23]} 11. a3 {[%emt 0:01:44]} a5 {[%emt 0:01:59]} 12. Rab1 {[%emt 0:08:20]} a4 {[%emt 0:02:08]} 13. d4 {[%emt 0:01:24]} cxd4 {[%emt 0:04:47]} 14. Qxd4 {[%emt 0:00:09]} Qxd4 {[%emt 0:01:15]} 15. Bxd4 {[%emt 0:03:33]} Ra6 {[%emt 0:03:38]} 16. Rfd1 {[%emt 0:04:13]} e5 {[%emt 0:01:26]} 17. Be3 {[%emt 0:00:12]} Be6 {[%emt 0:00:08]} 18. Rd2 {[%emt 0:04:15]} Rb8 {[%emt 0:05:10]} 19. Rbd1 {[%emt 0:05:09]} Bf8 {[%emt 0:05:54]} 20. Ne1 {[%emt 0:01:19]} g5 {[%emt 0:32:17]} 21. Nd3 {[%emt 0:04:41]} c5 {[%emt 0:00:27]} 22. Nc1 {[%emt 0:03:10]} b5 {[%emt 0:05:31]} 23. Nd5 {[%emt 0:03:41]} Bc8 {[%emt 0:00:24]} 24. c3 {[%emt 0:03:43]} Kg7 {[%emt 0:01:16]} 25. Ne2 {[%emt 0:01:46]} Rc6 {[%emt 0:03:00]} 26. f3 {[%emt 0:03:12]} Nd6 {[%emt 0:00:33]} 27. Bf2 {[%emt 0:00:08]} Nc4 {[%emt 0:05:02]} 28. Rc2 {[%emt 0:00:11]} Be6 {[%emt 0:03:14]} 29. Ng3 {[%emt 0:04:50]} Kf7 {[%emt 0:04:47]} 30. Nf1 {[%emt 0:02:54]} h5 {[%emt 0:08:48]} 31. Nfe3 {[%emt 0:02:48]} Na5 {[%emt 0:00:05]} 32. g4 {[%emt 0:04:46]} h4 {[%emt 0:00:08]} 33. Nf5 {[%emt 0:00:06]} b4 {[%emt 0:02:31]} 34. cxb4 {[%emt 0:04:44]} cxb4 {[%emt 0:00:04]} 35. Rxc6 {[%emt 0:00:24]} Nxc6 {[%emt 0:00:05]} 36. Rc1 {[%emt 0:01:10]} bxa3 {[%emt 0:03:42]} 37. bxa3 {[%emt 0:00:07]} Bd7 {[%emt 0:00:04]} 38. Nb6 {[%emt 0:01:57]} Be8 {[%emt 0:00:21]} 39. Nxa4 {[%emt 0:01:26]} Bxa3 {[%emt 0:02:46]} 40. Rd1 {[%emt 0:02:04]} Rb3 {[%emt 0:01:50]} 41. Kg2 {[%emt 0:30:51]} Ne7 {[%emt 0:31:51]} 42. Nc5 {[%emt 0:01:48]} Bxc5 {[%emt 0:00:00]} 43. Bxc5 {[%emt 0:00:00]} Rb2+ {[%emt 0:00:00]} 44. Kg1 {[%emt 0:00:00]} Nxf5 {[%emt 0:00:00]} 45. gxf5 {[%emt 0:00:00]} Bb5 {[%emt 0:00:00]} 46. Ra1 {[%emt 0:00:00]} Be2 {[%emt 0:00:00]} 47. Ra3 {[%emt 0:00:00]} Rb1+ {[%emt 0:00:00]} 48. Kf2 {[%emt 0:00:00]} Bf1 {[%emt 0:00:00]} 49. Ra7+ {[%emt 0:00:00]} Ke8 {[%emt 0:00:00]} 50. Be7 {[%emt 0:00:00]} Bxh3 {[%emt 0:00:00]} 51. Bxf6 {[%emt 0:00:00]} Rb2+ {[%emt 0:00:00]} 52. Kg1 {[%emt 0:00:00]} g4 {[%emt 0:00:00]} 53. Bxh4 {[%emt 0:00:00]} g3 {[%emt 0:00:00]} 54. Bxg3 {[%emt 0:00:00]} Rg2+ {[%emt 0:00:00]} 55. Kh1 {[%emt 0:00:00]} Rxg3 {[%emt 0:00:00]} 56. Ra5 {[%emt 0:00:00]} Kf7 {[%emt 0:00:00]} 57. Rxe5 {[%emt 0:00:00]} Rxf3 {[%emt 0:00:00]} 58. Re6 {[%emt 0:00:00]} Bf1 {[%emt 0:00:00]} 59. Rb6 {[%emt 0:00:00]} Re3 {[%emt 0:00:24]} 60. Kg1 {[%emt 0:00:00]} Bc4 {[%emt 0:00:31]} 61. Kf2 {[%emt 0:00:00]} Rxe4 {[%emt 0:00:16]} 62. Kf3 {[%emt 0:00:43]} Rh4 {[%emt 0:00:45]} 63. Kg3 {[%emt 0:00:20]} Rd4 {[%emt 0:00:11]} 64. Kf3 {[%emt 0:00:11]} Bd3 {[%emt 0:00:42]} 65. Ke3 {[%emt 0:00:11]} Rd5 {[%emt 0:00:05]} 66. f6 {[%emt 0:00:49]} Bf5 {[%emt 0:00:07]} 67. Rb8 {[%emt 0:00:09]} Kxf6 {[%emt 0:00:15]} 68. Kf4 {[%emt 0:02:07]} Rd4+ {[%emt 0:00:13]} 69. Ke3 {[%emt 0:00:08]} Re4+ {[%emt 0:01:13]} 70. Kf3 {[%emt 0:00:06]} Ra4 {[%emt 0:00:56]} 71. Ke3 {[%emt 0:00:15]} Be6 {[%emt 0:01:30]} 72. Rb5 {[%emt 0:00:29]} Bc4 {[%emt 0:01:28]} 73. Rb2 {[%emt 0:00:20]} Ke5 {[%emt 0:00:15]} 74. Kf2 {[%emt 0:00:26]} Kf4 {[%emt 0:00:12]} 75. Ke1 {[%emt 0:00:23]} Bd5 {[%emt 0:01:02]} 76. Kf2 {[%emt 0:00:22]} Bf3 {[%emt 0:01:43]} 77. Ke1 {[%emt 0:00:25]} Rd4 {[%emt 0:00:29]} 78. Kf2 {[%emt 0:00:31]} Re4 {[%emt 0:01:54]} 79. Ra2 {[%emt 0:01:33]} Rb4 {[%emt 0:01:43]} 80. Ke1 {[%emt 0:00:18]} Rd4 {[%emt 0:00:43]} 81. Kf2 {[%emt 0:01:14]} Bd5 {[%emt 0:01:14]} 82. Rb2 {[%emt 0:00:28]} Rd3 {[%emt 0:00:39]} 83. Kg1 {[%emt 0:00:31]} Kg3 {[%emt 0:00:52]} 84. Rg2+ {[%emt 0:00:07]} Kf3 {[%emt 0:00:04]} 85. Kh2 {[%emt 0:00:47]} Kf4 {[%emt 0:01:01]} 86. Rg7 {[%emt 0:00:56]} Rd2+ {[%emt 0:01:19]} 87. Kh3 {[%emt 0:00:26]} Be6+ {[%emt 0:00:12]} 0-1

[Event "Dutch Open-ch 2019"]
[Site "Dieren"]
[Date "2019.07.23"]
[Round "1.6"]
[White "Beerdsen, Thomas"]
[Black "t Jong, Ewoud"]
[Result "1-0"]
[ECO "C10"]
[WhiteElo "2497"]
[BlackElo "2159"]
[Annotator "ChessBase"]
[PlyCount "59"]
[EventDate "2019.07.23"]
[EventType "swiss"]
[EventCountry "NED"]
[SourceTitle "playchess.com"]
[Source "ChessBase"]
[SourceQuality "1"]
[TimeControl "40/5400+30:1800+30"]

1. e4 {[%emt 0:00:00]} e6 {[%emt 0:00:00]} 2. d4 {[%emt 0:00:08]} d5 {[%emt 0:00:00]} 3. Nd2 {[%emt 0:00:16]} dxe4 {[%emt 0:00:36]} 4. Nxe4 {[%emt 0:00:07]} Nd7 {[%emt 0:00:18]} 5. Nf3 {[%emt 0:01:12]} Ngf6 {[%emt 0:00:20]} 6. Nxf6+ {[%emt 0:00:24]} Nxf6 {[%emt 0:00:08]} 7. g3 {[%emt 0:01:26]} Bd6 {[%emt 0:06:07]} 8. Bg2 {[%emt 0:00:14]} O-O {[%emt 0:00:12]} 9. O-O {[%emt 0:00:16]} c6 {[%emt 0:04:08]} 10. c4 {[%emt 0:01:36]} Qc7 {[%emt 0:13:21]} 11. b3 {[%emt 0:05:14]} b6 {[%emt 0:07:42]} 12. Qc2 {[%emt 0:02:58]} Bb7 {[%emt 0:05:56]} 13. Bb2 {[%emt 0:00:19]} Rad8 {[%emt 0:04:04]} 14. Rad1 {[%emt 0:03:03]} Be7 {[%emt 0:05:40]} 15. Rfe1 {[%emt 0:11:29]} Rfe8 {[%emt 0:08:01]} 16. Qe2 {[%emt 0:05:34]} Nd7 {[%emt 0:12:46]} 17. Nd2 {[%emt 0:05:47]} Nf6 {[%emt 0:02:23]} 18. a3 {[%emt 0:02:27]} a5 {[%emt 0:05:48]} 19. Nf1 {[%emt 0:00:38]} Bd6 {[%emt 0:06:21]} 20. Ne3 {[%emt 0:01:22]} e5 {[%emt 0:04:42]} 21. dxe5 {[%emt 0:05:16]} Bxe5 {[%emt 0:00:11]} 22. Nd5 {[%emt 0:00:39]} cxd5 {[%emt 0:02:47]} 23. Bxe5 {[%emt 0:00:08]} Qc5 {[%emt 0:04:18]} 24. Qb2 {[%emt 0:01:12]} Ng4 {[%emt 0:05:22]} 25. Bd4 {[%emt 0:01:58]} Rxe1+ {[%emt 0:00:37]} 26. Rxe1 {[%emt 0:00:05]} Qc7 {[%emt 0:00:36]} 27. h3 {[%emt 0:00:56]} Nf6 {[%emt 0:00:32]} 28. Bxf6 {[%emt 0:00:12]} gxf6 {[%emt 0:00:03]} 29. Qxf6 {[%emt 0:00:16]} Qd7 {[%emt 0:00:59]} 30. Re5 {[%emt 0:00:23]} 1-0

[Event "Dutch Open-ch 2019"]
[Site "Dieren"]
[Date "2019.07.23"]
[Round "1.7"]
[White "Mulder, Bart-Piet"]
[Black "Schoppen, Casper"]
[Result "0-1"]
[ECO "A46"]
[WhiteElo "2154"]
[BlackElo "2493"]
[Annotator "ChessBase"]
[PlyCount "62"]
[EventDate "2019.07.23"]
[EventType "swiss"]
[EventCountry "NED"]
[SourceTitle "playchess.com"]
[Source "ChessBase"]
[SourceQuality "1"]
[TimeControl "40/5400+30:1800+30"]

1. d4 {[%emt 0:00:00]} Nf6 {[%emt 0:00:00]} 2. Nf3 {[%emt 0:00:00]} e6 {[%emt 0:00:10]} 3. g3 {[%emt 0:00:09]} b5 {[%emt 0:01:38]} 4. Bg2 {[%emt 0:00:05]} Bb7 {[%emt 0:00:04]} 5. c3 {[%emt 0:00:31]} Be7 {[%emt 0:00:32]} 6. O-O {[%emt 0:00:25]} O-O {[%emt 0:00:05]} 7. Bg5 {[%emt 0:00:53]} d5 {[%emt 0:03:41]} 8. Nbd2 {[%emt 0:06:28]} Nbd7 {[%emt 0:00:14]} 9. Qb1 {[%emt 0:04:02]} c5 {[%emt 0:03:17]} 10. Bxf6 {[%emt 0:07:59]} Nxf6 {[%emt 0:02:27]} 11. Ne5 {[%emt 0:03:23]} Qc7 {[%emt 0:01:06]} 12. Rc1 {[%emt 0:08:03]} Bd6 {[%emt 0:02:09]} 13. Ndf3 {[%emt 0:06:42]} Ne4 {[%emt 0:00:48]} 14. b4 {[%emt 0:02:46]} c4 {[%emt 0:01:05]} 15. a4 {[%emt 0:07:16]} f6 {[%emt 0:03:32]} 16. Ng4 {[%emt 0:01:47]} a5 {[%emt 0:00:22]} 17. bxa5 {[%emt 0:01:49]} Qxa5 {[%emt 0:00:21]} 18. axb5 {[%emt 0:05:39]} Qxa1 {[%emt 0:00:40]} 19. Qxa1 {[%emt 0:00:04]} Rxa1 {[%emt 0:00:06]} 20. Rxa1 {[%emt 0:00:03]} Nxc3 {[%emt 0:00:09]} 21. b6 {[%emt 0:13:18]} Nxe2+ {[%emt 0:02:22]} 22. Kf1 {[%emt 0:04:25]} Nc3 {[%emt 0:00:47]} 23. Ne3 {[%emt 0:01:00]} Rb8 {[%emt 0:03:30]} 24. Nd2 {[%emt 0:07:24]} Nb5 {[%emt 0:04:39]} 25. Nc2 {[%emt 0:10:57]} Bc8 {[%emt 0:02:52]} 26. f4 {[%emt 0:03:27]} g6 {[%emt 0:02:01]} 27. Ra5 {[%emt 0:04:23]} Rxb6 {[%emt 0:00:25]} 28. Ra8 {[%emt 0:00:31]} Rb8 {[%emt 0:00:27]} 29. Rxb8 {[%emt 0:00:28]} Bxb8 {[%emt 0:00:06]} 30. Ke2 {[%emt 0:00:09]} Bd7 {[%emt 0:01:21]} 31. Ke3 {[%emt 0:00:18]} Nc3 {[%emt 0:01:43]} 0-1